fUSD/lending_fUSD_20240628
["ID","MTS","AMOUNT","RATE_DAILY","PERIOD"]
[330548233,1719561184740,-1739.9,0.00021917,3]
[330548234,1719561184749,-1201.25,0.00021917,3]
[330548235,1719561184759,-823.37,0.00021917,3]
[330548236,1719561184768,-1677.95,0.00021917,3]
[330548237,1719561184777,-500.0,0.00021917,3]
[330548238,1719561184786,-2423.48,0.00021917,3]
[330548239,1719561184795,-4579.29,0.00021917,3]
[330548240,1719561184805,-564.34,0.00021917,3]
[330548241,1719561184814,-500.0,0.00021917,3]
[330548242,1719561184825,-500.0,0.00021917,3]
[330548243,1719561184834,-3220.4,0.00021917,3]
[330548244,1719561184843,-4356.08,0.00021917,3]
[330548245,1719561184852,-500.0,0.00021917,3]
[330548246,1719561184866,-10448.28,0.00021917,3]
[330548247,1719561184876,-2461.19,0.00021917,3]
[330548248,1719561184885,-575.39,0.00021917,3]
[330548249,1719561184895,-848.23,0.00021917,3]
[330548250,1719561184904,-571.54,0.00021917,3]
[330548251,1719561184913,-500.0,0.00021917,3]
[330548252,1719561184922,-1688.67,0.00021917,3]
[330548253,1719561184931,-4745.96,0.00021917,3]
[330548254,1719561184944,-500.0,0.00021917,3]
[330548255,1719561184954,-662.7,0.00021917,3]
[330548256,1719561184963,-1372.06,0.00021917,3]
[330548257,1719561184972,-504.88,0.00021917,3]
[330548258,1719561184982,-500.0,0.00021917,3]
[330548259,1719561184991,-1056.34,0.00021917,3]
[330548260,1719561185000,-606.3,0.00021917,3]
[330548261,1719561185009,-1074.08,0.00021917,3]
[330548262,1719561185019,-2441.39,0.00021917,3]
[330548263,1719561185028,-2465.9,0.00021917,3]
[330548264,1719561185037,-1390.74,0.00021917,3]
[330548265,1719561185047,-1781.97,0.00021917,3]
[330548266,1719561185056,-935.7,0.00021917,3]
[330548267,1719561185066,-500.0,0.00021917,3]
[330548268,1719561185077,-500.0,0.00021917,3]
[330548269,1719561185089,-500.0,0.00021917,3]
[330548270,1719561185100,-525.03,0.00021917,3]
[330548271,1719561185110,-3285.77,0.00021917,3]
[330548272,1719561185120,-668.57,0.00021917,3]
[330548273,1719561185131,-500.0,0.00021917,3]
[330548274,1719561185140,-1463.5,0.00021917,3]
[330548275,1719561185149,-1552.82,0.00021917,3]
[330548276,1719561185159,-1287.58,0.00021917,3]
[330548277,1719561185169,-1253.08,0.00021917,3]
[330548278,1719561185178,-615.30354084,0.00021917,3]
[330548279,1719561185188,-1221.61,0.00021917,3]
[330548280,1719561185197,-500.0,0.00021917,3]
[330548281,1719561185207,-500.0,0.00021917,3]
[330548282,1719561185219,-2098.47,0.00021917,3]
[330548283,1719561185228,-861.59,0.00021917,3]
[330548284,1719561185237,-1171.21,0.00021917,3]
[330548285,1719561185248,-500.0,0.00021917,3]
[330548286,1719561185258,-3809.85,0.00021917,3]
[330548287,1719561185268,-1526.48,0.00021917,3]
[330548288,1719561185277,-1044.61,0.00021917,3]
[330548289,1719561185286,-500.0,0.00021917,3]
[330548290,1719561185296,-2191.37,0.00021917,3]
[330548291,1719561185306,-500.0,0.00021917,3]
[330548292,1719561185315,-2330.29,0.00021917,3]
[330548293,1719561185325,-1251.54,0.00021917,3]
[330548294,1719561185334,-3118.59,0.00021917,3]
[330548295,1719561185343,-1197.85,0.00021917,3]
[330548296,1719561185352,-500.0,0.00021917,3]
[330548297,1719561185361,-532.97,0.00021917,3]
[330548298,1719561185371,-2052.11,0.00021917,3]
[330548299,1719561185382,-500.0,0.00021917,3]
[330548300,1719561185392,-5026.87,0.00021917,3]
[330548301,1719561185402,-1566.0,0.00021917,3]
[330548302,1719561185412,-873.76,0.00021917,3]
[330548303,1719561185421,-3596.87,0.00021917,3]
[330548304,1719561185431,-1698.0,0.00021917,3]
[330548305,1719561185441,-1543.01,0.00021917,3]
[330548306,1719561185450,-3389.93,0.00021917,3]
[330548307,1719561185460,-648.91,0.00021917,3]
[330548308,1719561185470,-2335.36,0.00021917,3]
[330548309,1719561185479,-2869.58,0.00021917,3]
[330548310,1719561185490,-762.46,0.00021917,3]
[330548311,1719561185500,-595.54,0.00021917,3]
[330548312,1719561185509,-638.08,0.00021917,3]
[330548313,1719561185519,-978.5,0.00021917,3]
[330548314,1719561185529,-526.25,0.00021917,3]
[330548315,1719561185538,-633.70036245,0.00021917,3]
[330548316,1719561185548,-780.19,0.00021917,3]
[330548317,1719561185558,-855.45,0.00021917,3]
[330548318,1719561185568,-1166.4,0.00021917,3]
[330548319,1719561185578,-779.68,0.00021917,3]
[330548320,1719561185588,-1703.63,0.00021917,3]
[330548321,1719561185599,-12184.84,0.00021917,3]
[330548322,1719561185609,-4108.34,0.00021917,3]
[330548323,1719561185619,-783.91,0.00021917,3]
[330548324,1719561185629,-655.17,0.00021917,3]
[330548325,1719561185639,-577.58,0.00021917,3]
[330548326,1719561185891,-500.0,0.00021917,3]
[330548327,1719561185915,-1494.47,0.00021917,3]
[330548328,1719561185925,-1434.26,0.00021917,3]
[330548329,1719561185935,-1812.77,0.00021917,3]
[330548330,1719561185946,-803.64,0.00021917,3]
[330548331,1719561185956,-8612.7,0.00021917,3]
[330548332,1719561185965,-500.0,0.00021917,3]
[330548333,1719561185975,-500.0,0.00021917,3]
[330548334,1719561185985,-2570.43,0.00021917,3]
[330548335,1719561185994,-2233.3,0.00021917,3]
[330548336,1719561186004,-564.9,0.00021917,3]
[330548337,1719561186015,-833.81,0.00021917,3]
[330548338,1719561186025,-651.19,0.00021917,3]
[330548339,1719561186035,-990.66,0.00021917,3]
[330548340,1719561186045,-7571.09,0.00021917,3]
[330548341,1719561186055,-1393.07,0.00021917,3]
[330548342,1719561186067,-795.17,0.00021917,3]
[330548343,1719561186081,-508.76738487,0.00021917,3]
[330548344,1719561186091,-1571.82,0.00021917,3]
[330548345,1719561186106,-803.77,0.00021917,3]
[330548346,1719561186117,-2442.19,0.00021917,3]
[330548347,1719561186127,-500.0,0.00021917,3]
[330548348,1719561186138,-500.0,0.00021917,3]
[330548349,1719561186148,-500.0,0.00021917,3]
[330548350,1719561186158,-500.0,0.00021917,3]
[330548351,1719561186169,-1017.76,0.00021917,3]
[330548352,1719561186180,-985.98,0.00021917,3]
[330548353,1719561186191,-3900.49,0.00021917,3]
[330548354,1719561186201,-623.56,0.00021917,3]
[330548355,1719561186211,-510.44,0.00021917,3]
[330548356,1719561186222,-673.35,0.00021917,3]
[330548357,1719561186232,-3626.35,0.00021917,3]
[330548358,1719561186242,-974.54,0.00021917,3]
[330548359,1719561186251,-3571.61,0.00021917,3]
[330548360,1719561186260,-500.0,0.00021917,3]
[330548361,1719561186270,-914.91,0.00021917,3]
[330548362,1719561186280,-4977.96,0.00021917,3]
[330548363,1719561186290,-1975.34,0.00021917,3]
[330548364,1719561186300,-668.22,0.00021917,3]
[330548365,1719561186310,-4103.33,0.00021917,3]
[330548366,1719561186324,-929.98,0.00021917,3]
[330548367,1719561186334,-690.61,0.00021917,3]
[330548368,1719561186344,-2114.11,0.00021917,3]
[330548369,1719561186353,-1628.46,0.00021917,3]
[330548370,1719561186362,-1444.66,0.00021917,3]
[330548371,1719561186374,-933.49,0.00021917,3]
[330548372,1719561186385,-2888.25,0.00021917,3]
[330548373,1719561186395,-1270.72,0.00021917,3]
[330548374,1719561186404,-3537.73,0.00021917,3]
[330548375,1719561186414,-1988.26,0.00021917,3]
[330548376,1719561186425,-646.8,0.00021917,3]
[330548377,1719561186436,-3537.83,0.00021917,3]
[330548378,1719561186446,-1016.96,0.00021917,3]
[330548379,1719561186456,-4400.98,0.00021917,3]
[330548380,1719561186466,-500.0,0.00021917,3]
[330548381,1719561186476,-500.0,0.00021917,3]
[330548382,1719561186486,-588.73,0.00021917,3]
[330548383,1719561186495,-768.32,0.00021917,3]
[330548384,1719561186505,-1070.33,0.00021917,3]
[330548385,1719561186515,-743.46,0.00021917,3]
[330548386,1719561186526,-892.56,0.00021917,3]
[330548387,1719561186536,-6545.79,0.00021917,3]
[330548388,1719561186545,-1231.54,0.00021917,3]
[330548389,1719561186555,-895.8,0.00021917,3]
[330548390,1719561186565,-500.0,0.00021917,3]
[330548391,1719561186578,-2097.83,0.00021917,3]
[330548392,1719561186588,-500.0,0.00021917,3]
[330548393,1719561186598,-3334.25,0.00021917,3]
[330548394,1719561186609,-3150.03,0.00021917,3]
[330548395,1719561186619,-487.21624565,0.00021917,3]
[330548396,1719561186630,-500.0,0.00021917,3]
[330548397,1719561186640,-500.0,0.00021917,3]
[330548398,1719561186649,-610.61,0.00021917,3]
[330548399,1719561186660,-1099.72,0.00021917,3]
[330548400,1719561186669,-500.0,0.00021917,3]
[330548401,1719561186679,-1552.28,0.00021917,3]
[330548402,1719561186689,-500.0,0.00021917,3]
[330548403,1719561186700,-735.24,0.00021917,3]
[330548404,1719561186710,-1827.69,0.00021917,3]
[330548405,1719561186720,-2422.64,0.00021917,3]
[330548406,1719561186730,-3657.77,0.00021917,3]
[330548407,1719561186740,-500.0,0.00021917,3]
[330548408,1719561186749,-500.0,0.00021917,3]
[330548409,1719561186760,-2088.49,0.00021917,3]
[330548410,1719561186773,-14987.84,0.00021917,3]
[330548411,1719561186783,-561.79,0.00021917,3]
[330548412,1719561186793,-454.84107825,0.00021917,3]
[330548413,1719561186803,-1894.39,0.00021917,3]
[330548414,1719561186813,-1243.28,0.00021917,3]
[330548415,1719561186825,-890.94,0.00021917,3]
[330548416,1719561186835,-500.0,0.00021917,3]
[330548417,1719561186845,-2029.23,0.00021917,3]
[330548418,1719561186856,-1128.27,0.00021917,3]
[330548419,1719561186868,-604.19,0.00021917,3]
[330548420,1719561186878,-2561.23,0.00021917,3]
[330548421,1719561186888,-500.0,0.00021917,3]
[330548422,1719561186899,-1302.81,0.00021917,3]
[330548423,1719561186909,-177.44004195,0.00021917,3]
[330548424,1719561186919,-2467.25,0.00021917,3]
[330548425,1719561186929,-580.74,0.00021917,3]
[330548426,1719561186940,-2378.96,0.00021917,3]
[330548427,1719561186952,-519.05,0.00021917,3]
[330548428,1719561186962,-696.42,0.00021917,3]
[330548429,1719561186973,-1077.61,0.00021917,3]
[330548430,1719561186982,-3444.9,0.00021917,3]
[330548431,1719561186992,-500.0,0.00021917,3]
[330548432,1719561187002,-1810.22,0.00021917,3]
[330548433,1719561187012,-878.91,0.00021917,3]
[330548434,1719561187022,-5919.42,0.00021917,3]
[330548435,1719561187032,-931.76,0.00021917,3]
[330548436,1719561187042,-1058.14,0.00021917,3]
[330548437,1719561187052,-1072.86,0.00021917,3]
[330548438,1719561187061,-1191.34,0.00021917,3]
[330548439,1719561187075,-1586.1,0.00021917,3]
[330548440,1719561187085,-3215.98,0.00021917,3]
[330548441,1719561187096,-687.47,0.00021917,3]
[330548442,1719561187107,-1219.48,0.00021917,3]
[330548443,1719561187117,-12606.71,0.00021917,3]
[330548444,1719561187128,-836.18,0.00021917,3]
[330548445,1719561187138,-625.82,0.00021917,3]
[330548446,1719561187148,-1319.12,0.00021917,3]
[330548447,1719561187159,-1059.97,0.00021917,3]
[330548448,1719561187168,-1041.16,0.00021917,3]
[330548449,1719561187178,-1776.67,0.00021917,3]
[330548450,1719561187188,-500.0,0.00021917,3]
[330548451,1719561187199,-500.0,0.00021917,3]
[330548452,1719561187210,-833.16,0.00021917,3]
[330548453,1719561187219,-852.24,0.00021917,3]
[330548454,1719561187229,-832.89,0.00021917,3]
[330548455,1719561187239,-500.0,0.00021917,3]
[330548456,1719561187248,-667.48,0.00021917,3]
[330548457,1719561187258,-500.0,0.00021917,3]
[330548458,1719561187268,-1285.7,0.00021917,3]
[330548459,1719561187278,-1976.95,0.00021917,3]
[330548460,1719561187287,-1115.81,0.00021917,3]
[330548461,1719561187297,-620.27,0.00021917,3]
[330548462,1719561187309,-1542.91,0.00021917,3]
[330548463,1719561187319,-1980.39,0.00021917,3]
[330548464,1719561187329,-1594.11,0.00021917,3]
[330548465,1719561187338,-500.0,0.00021917,3]
[330548466,1719561187349,-500.0,0.00021917,3]
[330548467,1719561187358,-1240.01,0.00021917,3]
[330548468,1719561187369,-1834.65,0.00021917,3]
[330548469,1719561187378,-1531.63,0.00021917,3]
[330548470,1719561187387,-893.21,0.00021917,3]
[330548471,1719561187397,-532.59,0.00021917,3]
[330548472,1719561187406,-1176.17,0.00021917,3]
[330548473,1719561187416,-4339.37,0.00021917,3]
[330548474,1719561187426,-500.0,0.00021917,3]
[330548475,1719561187435,-1096.31,0.00021917,3]
[330548476,1719561187446,-791.78,0.00021917,3]
[330548477,1719561187455,-500.0,0.00021917,3]
[330548478,1719561187465,-500.0,0.00021917,3]
[330548479,1719561187475,-1291.49,0.00021917,3]
[330548480,1719561187485,-1124.86,0.00021917,3]
[330548481,1719561187495,-504.91,0.00021917,3]
[330548482,1719561187505,-588.38,0.00021917,3]
[330548483,1719561187514,-1639.09,0.00021917,3]
[330548484,1719561187524,-1924.82,0.00021917,3]
[330548485,1719561187534,-500.0,0.00021917,3]
[330548486,1719561187543,-500.0,0.00021917,3]
[330548487,1719561187553,-1061.55,0.00021917,3]
[330548488,1719561187562,-1465.35,0.00021917,3]
[330548489,1719561187572,-500.0,0.00021917,3]
[330548490,1719561187582,-2089.57,0.00021917,3]
[330548491,1719561187592,-500.0,0.00021917,3]
[330548492,1719561187603,-734.27,0.00021917,3]
[330548493,1719561187613,-948.23,0.00021917,3]
[330548494,1719561187622,-3576.87,0.00021917,3]
[330548495,1719561187633,-3780.4,0.00021917,3]
[330548496,1719561187643,-500.0,0.00021917,3]
[330548497,1719561187652,-483.32260249,0.00021917,3]
[330548498,1719561187662,-770.26,0.00021917,3]
[330548499,1719561187672,-946.83,0.00021917,3]
[330548500,1719561187681,-3935.43,0.00021917,3]
[330548501,1719561187691,-278.54924343,0.00021917,3]
[330548502,1719561187700,-500.0,0.00021917,3]
[330548503,1719561187711,-1446.14,0.00021917,3]
[330548504,1719561187721,-2365.29,0.00021917,3]
[330548505,1719561187737,-4503.97,0.00021917,3]
[330548506,1719561187747,-1659.75,0.00021917,3]
[330548507,1719561187760,-500.0,0.00021917,3]
[330548508,1719561187770,-950.23,0.00021917,3]
[330548509,1719561187780,-500.0,0.00021917,3]
[330548510,1719561187790,-3311.36,0.00021917,3]
[330548511,1719561187799,-500.0,0.00021917,3]
[330548512,1719561187809,-1322.58,0.00021917,3]
[330548513,1719561187818,-783.88,0.00021917,3]
[330548514,1719561187829,-1914.45,0.00021917,3]
[330548515,1719561187839,-500.0,0.00021917,3]
[330548516,1719561187848,-3498.8,0.00021917,3]
[330548517,1719561187860,-1962.72,0.00021917,3]
[330548518,1719561187872,-500.0,0.00021917,3]
[330548519,1719561187881,-500.0,0.00021917,3]
[330548520,1719561187891,-1641.9,0.00021917,3]
[330548521,1719561187902,-612.16,0.00021917,3]
[330548522,1719561187912,-685.98,0.00021917,3]
[330548523,1719561187921,-637.51,0.00021917,3]
[330548524,1719561187930,-3117.56,0.00021917,3]
[330548525,1719561187939,-1141.3,0.00021917,3]
[330548526,1719561187949,-500.0,0.00021917,3]
[330548527,1719561187961,-4395.4,0.00021917,3]
[330548528,1719561187970,-500.0,0.00021917,3]
[330548529,1719561187980,-3970.07,0.00021917,3]
[330548530,1719561187990,-1264.09,0.00021917,3]
[330548531,1719561187999,-3602.08,0.00021917,3]
[330548532,1719561188009,-2447.28,0.00021917,3]
[330548533,1719561188018,-500.0,0.00021917,3]
[330548534,1719561188027,-500.0,0.00021917,3]
[330548535,1719561188037,-8127.46,0.00021917,3]
[330548536,1719561188046,-500.0,0.00021917,3]
[330548537,1719561188056,-764.6,0.00021917,3]
[330548538,1719561188065,-3867.01,0.00021917,3]
[330548539,1719561188077,-1319.29,0.00021917,3]
[330548540,1719561188086,-2004.62,0.00021917,3]
[330548541,1719561188096,-2128.6,0.00021917,3]
[330548542,1719561188105,-964.57,0.00021917,3]
[330548543,1719561188114,-543.13,0.00021917,3]
[330548544,1719561188124,-2955.61,0.00021917,3]
[330548545,1719561188133,-500.0,0.00021917,3]
[330548546,1719561188143,-5636.27,0.00021917,3]
[330548547,1719561188152,-4918.69,0.00021917,3]
[330548548,1719561188162,-4066.1,0.00021917,3]
[330548549,1719561188172,-664.5,0.00021917,3]
[330548550,1719561188181,-4196.26,0.00021917,3]
[330548551,1719561188190,-2426.91,0.00021917,3]
[330548552,1719561188200,-500.0,0.00021917,3]
[330548553,1719561188209,-500.0,0.00021917,3]
[330548554,1719561188219,-571.57,0.00021917,3]
[330548555,1719561188229,-500.0,0.00021917,3]
[330548556,1719561188239,-619.41,0.00021917,3]
[330548557,1719561188248,-1310.02,0.00021917,3]
[330548558,1719561188257,-3529.65,0.00021917,3]
[330548559,1719561188266,-790.68,0.00021917,3]
[330548560,1719561188276,-1259.18,0.00021917,3]
[330548561,1719561188285,-803.47,0.00021917,3]
[330548562,1719561188294,-1996.62,0.00021917,3]
[330548563,1719561188304,-605.10058192,0.00021917,3]
[330548564,1719561188313,-3541.7,0.00021917,3]
[330548565,1719561188324,-863.97,0.00021917,3]
[330548566,1719561188334,-530.3,0.00021917,3]
[330548567,1719561188343,-676.52,0.00021917,3]
[330548568,1719561188353,-500.0,0.00021917,3]
[330548569,1719561188362,-7586.47,0.00021917,3]
[330548570,1719561188371,-731.62,0.00021917,3]
[330548571,1719561188381,-500.0,0.00021917,2]
[330548572,1719561188390,-1475.96,0.00021917,3]
[330548573,1719561188400,-500.0,0.00021917,3]
[330548574,1719561188409,-955.45,0.00021917,3]
[330548575,1719561188418,-1270.09,0.00021917,3]
[330548576,1719561188428,-305.2840196,0.00021917,3]
[330548577,1719561188438,-1229.77,0.00021917,3]
[330548578,1719561188563,-2329.0,0.00021917,3]
[330548579,1719561188576,-773.16,0.00021917,3]
[330548580,1719561188586,-1393.57,0.00021917,3]
[330548581,1719561188596,-986.15,0.00021917,3]
[330548582,1719561188605,-1485.78,0.00021917,3]
[330548583,1719561188615,-1707.42,0.00021917,3]
[330548584,1719561188624,-500.0,0.00021917,3]
[330548585,1719561188634,-500.0,0.00021917,3]
[330548586,1719561188643,-5063.06,0.00021917,3]
[330548587,1719561188653,-768.85,0.00021917,3]
[330548588,1719561188662,-2012.41,0.00021917,3]
[330548589,1719561188671,-921.17,0.00021917,3]
[330548590,1719561188681,-2449.33,0.00021917,3]
[330548591,1719561188690,-2037.45,0.00021917,3]
[330548592,1719561188700,-500.0,0.00021917,3]
[330548593,1719561188709,-1779.04,0.00021917,3]
[330548594,1719561188718,-500.0,0.00021917,3]
[330548595,1719561188728,-9301.47,0.00021917,3]
[330548596,1719561188737,-1017.79,0.00021917,3]
[330548597,1719561188749,-2900.72,0.00021917,3]
[330548598,1719561188758,-526.59,0.00021917,3]
[330548599,1719561188767,-663.42,0.00021917,3]
[330548600,1719561188777,-500.0,0.00021917,3]
[330548601,1719561188787,-500.0,0.00021917,3]
[330548602,1719561188796,-674.65,0.00021917,3]
[330548603,1719561188806,-2537.99,0.00021917,3]
[330548604,1719561188815,-500.0,0.00021917,3]
[330548605,1719561188830,-1420.13,0.00021917,3]
[330548606,1719561188840,-1037.85,0.00021917,3]
[330548607,1719561188850,-3320.06,0.00021917,3]
[330548608,1719561188865,-3319.78,0.00021917,3]
[330548609,1719561188875,-500.0,0.00021917,3]
[330548610,1719561188885,-634.63,0.00021917,3]
[330548611,1719561188895,-56773.66,0.00021917,3]
[330548612,1719561188906,-555.58,0.00021917,3]
[330548613,1719561188917,-150.0,0.00021917,2]
[330548614,1719561188927,-300.0,0.00021917,2]
[330548615,1719561188940,-450.0,0.00021917,2]
[330548616,1719561188951,-600.0,0.00021917,2]
[330548617,1719561188961,-750.0,0.00021917,2]
[330548618,1719561188971,-755.32509154,0.00021917,2]
[330548619,1719561188981,-625.07,0.00021917,3]
[330548620,1719561188991,-2200.88,0.00021917,3]
[330548621,1719561189001,-941.38,0.00021917,3]
[330548622,1719561189012,-510.63,0.00021917,3]
[330548623,1719561189022,-2030.64,0.00021917,3]
[330548624,1719561189033,-670.5,0.00021917,3]
[330548625,1719561189043,-680.1,0.00021917,3]
[330548626,1719561189053,-1092.89,0.00021917,3]
[330548627,1719561189063,-500.0,0.00021917,3]
[330548628,1719561189080,-916.14,0.00021917,3]
[330548629,1719561189091,-1305.67,0.00021917,3]
[330548630,1719561189102,-608.88,0.00021917,3]
[330548631,1719561189111,-2094.61,0.00021917,3]
[330548632,1719561189120,-912.19,0.00021917,3]
[330548633,1719561189130,-624.72,0.00021917,3]
[330548634,1719561189140,-3883.66,0.00021917,3]
[330548635,1719561189149,-575.25,0.00021917,3]
[330548636,1719561189159,-1750.92,0.00021917,3]
[330548637,1719561189169,-500.0,0.00021917,3]
[330548638,1719561189178,-586.86,0.00021917,3]
[330548639,1719561189188,-1644.79,0.00021917,3]
[330548640,1719561189197,-2240.25,0.00021917,3]
[330548641,1719561189207,-500.0,0.00021917,3]
[330548642,1719561189217,-3442.26,0.00021917,3]
[330548643,1719561189226,-785.73,0.00021917,3]
[330548644,1719561189236,-2119.76,0.00021917,3]
[330548645,1719561189245,-2077.02,0.00021917,3]
[330548646,1719561189254,-3279.62,0.00021917,3]
[330548647,1719561189264,-1177.19,0.00021917,3]
[330548648,1719561189273,-500.0,0.00021917,3]
[330548649,1719561189282,-2812.36,0.00021917,3]
[330548650,1719561189291,-500.0,0.00021917,3]
[330548651,1719561189300,-432.23098623,0.00021917,3]
[330548652,1719561189309,-500.0,0.00021917,3]
[330548653,1719561189319,-500.0,0.00021917,3]
[330548654,1719561189334,-751.3,0.00021917,3]
[330548655,1719561189343,-5691.14,0.00021917,3]
[330548656,1719561189353,-1875.87,0.00021917,3]
[330548657,1719561189362,-1783.03,0.00021917,3]
[330548658,1719561189375,-500.0,0.00021917,3]
[330548659,1719561189385,-2181.6,0.00021917,3]
[330548660,1719561189394,-3820.4,0.00021917,3]
[330548661,1719561189404,-500.0,0.00021917,3]
[330548662,1719561189413,-4551.03,0.00021917,3]
[330548663,1719561189422,-1185.76,0.00021917,3]
[330548664,1719561189432,-500.0,0.00021917,3]
[330548665,1719561189441,-288.12409933,0.00021917,3]
[330548666,1719561189450,-500.0,0.00021917,3]
[330548667,1719561189460,-500.0,0.00021917,3]
[330548668,1719561189469,-500.0,0.00021917,3]
[330548669,1719561189479,-500.0,0.00021917,3]
[330548670,1719561189489,-3480.66,0.00021917,3]
[330548671,1719561189499,-1117.03,0.00021917,3]
[330548672,1719561189509,-710.75,0.00021917,3]
[330548673,1719561189520,-2776.49,0.00021917,3]
[330548674,1719561189529,-500.0,0.00021917,3]
[330548675,1719561189539,-1555.15,0.00021917,3]
[330548676,1719561189549,-5613.75,0.00021917,3]
[330548677,1719561189559,-3058.96,0.00021917,3]
[330548678,1719561189569,-500.0,0.00021917,3]
[330548679,1719561189588,-820.14,0.00021917,3]
[330548680,1719561189597,-500.0,0.00021917,3]
[330548681,1719561189607,-5538.45,0.00021917,3]
[330548682,1719561189616,-918.65,0.00021917,3]
[330548683,1719561189625,-825.28,0.00021917,3]
[330548684,1719561189635,-515.83,0.00021917,3]
[330548685,1719561189644,-841.57,0.00021917,3]
[330548686,1719561189653,-500.0,0.00021917,3]
[330548687,1719561189662,-500.0,0.00021917,3]
[330548688,1719561189671,-4616.67,0.00021917,3]
[330548689,1719561189680,-592.24,0.00021917,3]
[330548690,1719561189690,-10383.18,0.00021917,3]
[330548691,1719561189699,-469.41004759,0.00021917,3]
[330548692,1719561189710,-1439.93,0.00021917,3]
[330548693,1719561189720,-1039.73,0.00021917,3]
[330548694,1719561189729,-6117.5,0.00021917,3]
[330548695,1719561189739,-1863.96,0.00021917,3]
[330548696,1719561189748,-887.72,0.00021917,3]
[330548697,1719561189757,-3531.61,0.00021917,3]
[330548698,1719561189769,-1143.1,0.00021917,3]
[330548699,1719561189779,-500.0,0.00021917,3]
[330548700,1719561189789,-175.67608837,0.00021917,3]
[330548701,1719561189799,-1362.09,0.00021917,3]
[330548702,1719561189808,-500.0,0.00021917,3]
[330548703,1719561189818,-3216.0,0.00021917,3]
[330548704,1719561189834,-419.5113655,0.00021917,3]
[330548705,1719561189843,-1155.64,0.00021917,3]
[330548706,1719561189853,-3529.87,0.00021917,3]
[330548707,1719561189868,-16559.11,0.00021917,3]
[330548708,1719561189877,-3804.04,0.00021917,3]
[330548709,1719561189887,-23179.74,0.00021917,3]
[330548710,1719561189896,-850.77,0.00021917,3]
[330548711,1719561189906,-500.0,0.00021917,3]
[330548712,1719561189916,-1207.75,0.00021917,3]
[330548713,1719561189926,-932.07,0.00021917,3]
[330548714,1719561189935,-1059.78,0.00021917,3]
[330548715,1719561189948,-2084.87,0.00021917,3]
[330548716,1719561189957,-500.0,0.00021917,3]
[330548717,1719561189967,-2749.65,0.00021917,3]
[330548718,1719561189976,-500.0,0.00021917,3]
[330548719,1719561189986,-12501.51,0.00021917,3]
[330548720,1719561189996,-547.83,0.00021917,3]
[330548721,1719561190007,-736.84,0.00021917,3]
[330548722,1719561190016,-1431.47,0.00021917,3]
[330548723,1719561190026,-500.0,0.00021917,3]
[330548724,1719561190036,-607.13,0.00021917,3]
[330548725,1719561190046,-2419.31,0.00021917,3]
[330548726,1719561190055,-500.0,0.00021917,3]
[330548727,1719561190065,-694.49,0.00021917,3]
[330548728,1719561190080,-500.0,0.00021917,3]
[330548729,1719561190090,-1192.09,0.00021917,3]
[330548730,1719561190100,-500.0,0.00021917,3]
[330548731,1719561190109,-9353.15,0.00021917,3]
[330548732,1719561190118,-1830.13,0.00021917,3]